[Event "GER-chW Blitz 2019"]
[Site "Magdeburg"]
[Date "2019.05.25"]
[Round "6.9"]
[White "Osmanodja, Filiz"]
[Black "Silz, Elisa"]
[Result "1-0"]
[ECO "B06"]
[WhiteElo "2260"]
[BlackElo "1977"]
[Annotator "NA"]
[PlyCount "113"]
[EventDate "2019.05.25"]
[EventType "tourn"]
[EventCountry "GER"]
[SourceTitle "playchess.com"]
[Source "ChessBase"]
[SourceQuality "1"]
[TimeControl "180+2"]

1. e4 {[%emt 0:00:00]} g6 {[%emt 0:00:00]} 2. d4 {[%emt 0:00:00]} Bg7 {[%emt 0:00:00]} 3. Nf3 {[%emt 0:00:05]} c6 {[%emt 0:00:00]} 4. c3 {[%emt 0:00:02]} d5 {[%emt 0:00:01]} 5. e5 {[%emt 0:00:06]} Bg4 {[%emt 0:00:02]} 6. Be2 {[%emt 0:00:09]} f6 {[%emt 0:00:01]} 7. Bf4 {[%emt 0:00:10]} Nd7 {[%emt 0:00:01]} 8. exf6 {[%emt 0:00:23]} Ngxf6 {[%emt 0:00:02]} 9. Ne5 {[%emt 0:00:18]} Bxe2 {[%emt 0:00:02]} 10. Qxe2 {[%emt 0:00:02]} O-O {[%emt 0:00:08]} 11. O-O {[%emt 0:00:29]} Nh5 {[%emt 0:00:03]} 12. Bg3 {[%emt 0:00:12]} Nxg3 {[%emt 0:00:04]} 13. hxg3 {[%emt 0:00:05]} Nxe5 {[%emt 0:00:15]} 14. dxe5 {[%emt 0:00:01]} Rf5 {[%emt 0:00:01]} 15. f4 {[%emt 0:00:07]} e6 {[%emt 0:00:03]} 16. g4 {[%emt 0:00:06]} Rf7 {[%emt 0:00:06]} 17. g3 {[%emt 0:00:19]} Qb6+ {[%emt 0:00:03]} 18. Qf2 {[%emt 0:00:05]} Qxf2+ {[%emt 0:00:08]} 19. Rxf2 {[%emt 0:00:02]} Raf8 {[%emt 0:00:03]} 20. Nd2 {[%emt 0:00:12]} g5 {[%emt 0:00:02]} 21. Raf1 {[%emt 0:00:05]} Bh6 {[%emt 0:00:10]} 22. f5 {[%emt 0:00:04]} exf5 {[%emt 0:00:10]} 23. e6 {[%emt 0:00:06]} Rf6 {[%emt 0:00:18]} 24. Rxf5 {[%emt 0:00:20]} Rxe6 {[%emt 0:00:08]} 25. Rxf8+ {[%emt 0:00:07]} Bxf8 {[%emt 0:00:01]} 26. Nf3 {[%emt 0:00:01]} Be7 {[%emt 0:00:03]} 27. Nd4 {[%emt 0:00:01]} Rf6 {[%emt 0:00:08]} 28. Nf5 {[%emt 0:00:01]} Bd8 {[%emt 0:00:04]} 29. Re1 {[%emt 0:00:03]} Bb6+ {[%emt 0:00:04]} 30. Kg2 {[%emt 0:00:01]} Bc5 {[%emt 0:00:10]} 31. b4 {[%emt 0:00:01]} Bf8 {[%emt 0:00:03]} 32. Re8 {[%emt 0:00:01]} Kf7 {[%emt 0:00:03]} 33. Rb8 {[%emt 0:00:00]} Re6 {[%emt 0:00:14]} 34. Rxb7+ {[%emt 0:00:01]} Kg6 {[%emt 0:00:02]} 35. Kf2 {[%emt 0:00:08]} c5 {[%emt 0:00:02]} 36. b5 {[%emt 0:00:08]} d4 {[%emt 0:00:04]} 37. cxd4 {[%emt 0:00:05]} cxd4 {[%emt 0:00:01]} 38. Rd7 {[%emt 0:00:05]} Bc5 {[%emt 0:00:03]} 39. Rd5 {[%emt 0:00:01]} Bb6 {[%emt 0:00:02]} 40. Kf3 {[%emt 0:00:03]} Kf7 {[%emt 0:00:17]} 41. Nxd4 {[%emt 0:00:03]} Bxd4 {[%emt 0:00:02]} 42. Rxd4 {[%emt 0:00:00]} Ke7 {[%emt 0:00:08]} 43. Rc4 {[%emt 0:00:01]} Rd6 {[%emt 0:00:01]} 44. Rc7+ {[%emt 0:00:01]} Rd7 {[%emt 0:00:03]} 45. Rxd7+ {[%emt 0:00:02]} Kxd7 {[%emt 0:00:00]} 46. Ke4 {[%emt 0:00:02]} Kd6 {[%emt 0:00:02]} 47. Kf5 {[%emt 0:00:02]} h6 {[%emt 0:00:03]} 48. Kg6 Kc5 {[%emt 0:00:00]} 49. Kxh6 {[%emt 0:00:04]} Kxb5 50. Kxg5 {[%emt 0:00:01]} Kb4 {[%emt 0:00:01]} 51. Kf4 {[%emt 0:00:05]} Ka3 {[%emt 0:00:01]} 52. g5 {[%emt 0:00:01]} Kxa2 53. g6 a5 {[%emt 0:00:02]} 54. g7 {[%emt 0:00:02]} a4 {[%emt 0:00:00]} 55. g8=Q+ {[%emt 0:00:03]} Kb2 {[%emt 0:00:01]} 56. g4 {[%emt 0:00:04]} a3 {[%emt 0:00:01]} 57. g5 {[%emt 0:00:01]} 1-0

[Event "GER-chW Blitz 2019"]
[Site "Magdeburg"]
[Date "2019.05.25"]
[Round "6.10"]
[White "Michna, Marta"]
[Black "Rath, Alina"]
[Result "1-0"]
[ECO "D00"]
[WhiteElo "2355"]
[BlackElo "2042"]
[Annotator "NA"]
[PlyCount "117"]
[EventDate "2019.05.25"]
[EventType "tourn"]
[EventCountry "GER"]
[SourceTitle "playchess.com"]
[Source "ChessBase"]
[SourceQuality "1"]
[TimeControl "180+2"]

1. d4 {[%emt 0:00:00]} d5 {[%emt 0:00:00]} 2. Bf4 {[%emt 0:00:00]} Nf6 {[%emt 0:00:00]} 3. e3 {[%emt 0:00:00]} e6 {[%emt 0:00:01]} 4. Nd2 {[%emt 0:00:01]} c5 {[%emt 0:00:01]} 5. c3 {[%emt 0:00:01]} Nc6 {[%emt 0:00:01]} 6. Ngf3 {[%emt 0:00:01]} Bd6 {[%emt 0:00:02]} 7. Bg3 {[%emt 0:00:00]} O-O {[%emt 0:00:03]} 8. Ne5 {[%emt 0:00:07]} Qc7 {[%emt 0:00:15]} 9. f4 {[%emt 0:00:02]} b6 {[%emt 0:00:04]} 10. Bd3 {[%emt 0:00:02]} Bb7 {[%emt 0:00:03]} 11. Qf3 {[%emt 0:00:08]} Ne7 {[%emt 0:00:04]} 12. Bh4 {[%emt 0:00:10]} Ne8 {[%emt 0:00:19]} 13. O-O {[%emt 0:00:02]} g6 {[%emt 0:00:18]} 14. Qh3 {[%emt 0:00:10]} Nf5 {[%emt 0:00:06]} 15. Bf2 {[%emt 0:00:18]} f6 {[%emt 0:00:08]} 16. Nef3 {[%emt 0:00:20]} Rf7 {[%emt 0:00:12]} 17. g4 {[%emt 0:00:03]} Nfg7 {[%emt 0:00:03]} 18. Nh4 {[%emt 0:00:34]} f5 {[%emt 0:00:14]} 19. Ndf3 {[%emt 0:00:12]} Nf6 {[%emt 0:00:08]} 20. Ng5 {[%emt 0:00:03]} Re7 {[%emt 0:00:04]} 21. Qg2 {[%emt 0:00:19]} Nxg4 {[%emt 0:00:08]} 22. h3 {[%emt 0:00:01]} Nf6 {[%emt 0:00:05]} 23. Ngf3 {[%emt 0:00:00]} Ne4 {[%emt 0:00:06]} 24. Ne5 {[%emt 0:00:03]} Bxe5 {[%emt 0:00:01]} 25. fxe5 {[%emt 0:00:02]} Qc8 {[%emt 0:00:16]} 26. Kh1 {[%emt 0:00:02]} Rf7 {[%emt 0:00:03]} 27. Bg1 {[%emt 0:00:05]} Qd8 {[%emt 0:00:02]} 28. Bxe4 {[%emt 0:00:22]} dxe4 {[%emt 0:00:01]} 29. Qg3 {[%emt 0:00:14]} c4 {[%emt 0:00:02]} 30. Ng2 {[%emt 0:00:02]} Nh5 {[%emt 0:00:05]} 31. Qe1 {[%emt 0:00:01]} Rg7 {[%emt 0:00:05]} 32. Bh2 {[%emt 0:00:02]} Rf7 {[%emt 0:00:09]} 33. Nf4 {[%emt 0:00:02]} Nxf4 {[%emt 0:00:03]} 34. Bxf4 {[%emt 0:00:01]} Rc8 {[%emt 0:00:09]} 35. Rg1 {[%emt 0:00:01]} Kh8 {[%emt 0:00:03]} 36. Bg5 {[%emt 0:00:02]} Qf8 {[%emt 0:00:08]} 37. Qh4 {[%emt 0:00:01]} Kg8 {[%emt 0:00:03]} 38. Raf1 {[%emt 0:00:01]} Rcc7 {[%emt 0:00:01]} 39. Rf4 {[%emt 0:00:03]} Rg7 {[%emt 0:00:01]} 40. Bf6 {[%emt 0:00:02]} Rcf7 {[%emt 0:00:04]} 41. Rg5 {[%emt 0:00:05]} Rxf6 {[%emt 0:00:01]} 42. exf6 {[%emt 0:00:01]} Qxf6 {[%emt 0:00:01]} 43. Qh6 {[%emt 0:00:03]} e5 {[%emt 0:00:02]} 44. Rfxf5 {[%emt 0:00:08]} Qe7 {[%emt 0:00:10]} 45. Rxe5 {[%emt 0:00:01]} Qf7 {[%emt 0:00:02]} 46. Rg2 {[%emt 0:00:06]} Qf1+ {[%emt 0:00:02]} 47. Kh2 {[%emt 0:00:01]} Bc6 {[%emt 0:00:02]} 48. d5 {[%emt 0:00:04]} Bd7 {[%emt 0:00:01]} 49. Qf4 {[%emt 0:00:02]} Qe1 {[%emt 0:00:17]} 50. Qxe4 {[%emt 0:00:01]} Rf7 {[%emt 0:00:04]} 51. Re8+ {[%emt 0:00:09]} Kg7 {[%emt 0:00:01]} 52. Qe5+ {[%emt 0:00:01]} Kh6 {[%emt 0:00:01]} 53. Qg5+ {[%emt 0:00:04]} Kg7 {[%emt 0:00:01]} 54. Re7 {[%emt 0:00:01]} Bf5 {[%emt 0:00:05]} 55. Rxf7+ Kxf7 {[%emt 0:00:00]} 56. d6 {[%emt 0:00:02]} Qd1 {[%emt 0:00:04]} 57. Qe7+ {[%emt 0:00:02]} Kg8 {[%emt 0:00:02]} 58. Qe5 {[%emt 0:00:02]} Kf7 {[%emt 0:00:03]} 59. e4 {[%emt 0:00:01]} 1-0

[Event "GER-chW Blitz 2019"]
[Site "Magdeburg"]
[Date "2019.05.25"]
[Round "6.11"]
[White "Muetsch, Annmarie"]
[Black "Birkholz, Olga"]
[Result "1-0"]
[ECO "B28"]
[WhiteElo "2266"]
[BlackElo "2031"]
[Annotator "NA"]
[PlyCount "133"]
[EventDate "2019.05.25"]
[EventType "tourn"]
[EventCountry "GER"]
[SourceTitle "playchess.com"]
[Source "ChessBase"]
[SourceQuality "1"]
[TimeControl "180+2"]

1. e4 {[%emt 0:00:00]} c5 {[%emt 0:00:00]} 2. Nf3 {[%emt 0:00:01]} a6 {[%emt 0:00:00]} 3. d3 {[%emt 0:00:04]} g6 {[%emt 0:00:02]} 4. Nbd2 {[%emt 0:00:01]} Bg7 {[%emt 0:00:01]} 5. g3 {[%emt 0:00:01]} d6 {[%emt 0:00:01]} 6. Bg2 {[%emt 0:00:01]} Nc6 {[%emt 0:00:02]} 7. O-O {[%emt 0:00:02]} Nf6 {[%emt 0:00:01]} 8. c3 {[%emt 0:00:01]} e5 {[%emt 0:00:06]} 9. Re1 {[%emt 0:00:07]} O-O {[%emt 0:00:02]} 10. Nf1 {[%emt 0:00:01]} h6 {[%emt 0:00:05]} 11. h4 {[%emt 0:00:16]} Be6 {[%emt 0:00:03]} 12. Qe2 {[%emt 0:00:05]} Qc7 {[%emt 0:00:09]} 13. Ne3 {[%emt 0:00:32]} b5 {[%emt 0:00:04]} 14. Nh2 {[%emt 0:00:11]} b4 {[%emt 0:00:14]} 15. Nd5 {[%emt 0:00:10]} Bxd5 {[%emt 0:00:20]} 16. exd5 {[%emt 0:00:02]} Ne7 {[%emt 0:00:01]} 17. c4 {[%emt 0:00:12]} Nf5 {[%emt 0:00:01]} 18. Be3 {[%emt 0:00:13]} Rae8 {[%emt 0:00:11]} 19. Ng4 {[%emt 0:00:09]} Nxe3 {[%emt 0:00:21]} 20. Nxf6+ {[%emt 0:00:09]} Bxf6 {[%emt 0:00:01]} 21. fxe3 {[%emt 0:00:08]} a5 {[%emt 0:00:10]} 22. h5 {[%emt 0:00:06]} Bg5 {[%emt 0:00:08]} 23. Qg4 {[%emt 0:00:13]} Qc8 {[%emt 0:00:07]} 24. Bh3 {[%emt 0:00:34]} Qxg4 {[%emt 0:00:06]} 25. Bxg4 {[%emt 0:00:02]} f5 {[%emt 0:00:01]} 26. Bd1 {[%emt 0:00:04]} Kg7 {[%emt 0:00:01]} 27. e4 {[%emt 0:00:05]} fxe4 {[%emt 0:00:05]} 28. dxe4 {[%emt 0:00:06]} Rf6 {[%emt 0:00:07]} 29. Bg4 {[%emt 0:00:07]} Ref8 {[%emt 0:00:03]} 30. hxg6 {[%emt 0:00:07]} Rf2 {[%emt 0:00:07]} 31. Bf5 {[%emt 0:00:03]} Rxb2 {[%emt 0:00:02]} 32. Reb1 {[%emt 0:00:02]} Rc2 {[%emt 0:00:06]} 33. Rf1 {[%emt 0:00:06]} Be3+ {[%emt 0:00:04]} 34. Kh1 {[%emt 0:00:01]} Bd4 {[%emt 0:00:03]} 35. Rac1 {[%emt 0:00:03]} Rc3 {[%emt 0:00:04]} 36. Kg2 {[%emt 0:00:03]} Rc2+ {[%emt 0:00:02]} 37. Rxc2 {[%emt 0:00:02]} Bc3 {[%emt 0:00:03]} 38. g4 {[%emt 0:00:00]} Bd4 {[%emt 0:00:02]} 39. Rh1 {[%emt 0:00:01]} Be3 {[%emt 0:00:02]} 40. Rh5 {[%emt 0:00:01]} Bg5 {[%emt 0:00:01]} 41. Re2 Bf4 {[%emt 0:00:01]} 42. Re1 {[%emt 0:00:02]} Bg5 {[%emt 0:00:01]} 43. Reh1 {[%emt 0:00:01]} Bf4 {[%emt 0:00:01]} 44. Ra1 {[%emt 0:00:02]} Bg5 {[%emt 0:00:03]} 45. Rhh1 {[%emt 0:00:02]} Be3 {[%emt 0:00:02]} 46. Rab1 {[%emt 0:00:01]} Bd4 {[%emt 0:00:01]} 47. g5 {[%emt 0:00:02]} Be3 {[%emt 0:00:04]} 48. gxh6+ {[%emt 0:00:01]} Bxh6 {[%emt 0:00:01]} 49. a3 {[%emt 0:00:02]} Rb8 {[%emt 0:00:07]} 50. axb4 {[%emt 0:00:01]} cxb4 {[%emt 0:00:04]} 51. Ra1 {[%emt 0:00:02]} Ra8 {[%emt 0:00:02]} 52. Rhb1 {[%emt 0:00:02]} Bd2 {[%emt 0:00:04]} 53. Ra4 {[%emt 0:00:01]} Bc3 {[%emt 0:00:04]} 54. Kf3 {[%emt 0:00:01]} Kf6 55. Kg4 Bd2 {[%emt 0:00:04]} 56. Rb3 {[%emt 0:00:05]} Bc3 {[%emt 0:00:02]} 57. Kf3 {[%emt 0:00:03]} Bd2 {[%emt 0:00:03]} 58. Ke2 {[%emt 0:00:01]} Bc3 {[%emt 0:00:01]} 59. Kd3 {[%emt 0:00:01]} Rh8 {[%emt 0:00:03]} 60. Rxa5 {[%emt 0:00:02]} Rh3+ {[%emt 0:00:01]} 61. Ke2 {[%emt 0:00:02]} Rh2+ {[%emt 0:00:01]} 62. Kf1 {[%emt 0:00:01]} Rh1+ {[%emt 0:00:07]} 63. Kg2 {[%emt 0:00:01]} Rc1 {[%emt 0:00:03]} 64. Ra2 {[%emt 0:00:02]} Re1 {[%emt 0:00:08]} 65. Rc2 {[%emt 0:00:03]} Re3 {[%emt 0:00:03]} 66. Kf2 {[%emt 0:00:03]} Rh3 {[%emt 0:00:03]} 67. Bxh3 {[%emt 0:00:03]} 1-0

[Event "GER-chW Blitz 2019"]
[Site "Magdeburg"]
[Date "2019.05.25"]
[Round "6.12"]
[White "Siegl, Melina"]
[Black "Hofmann, Karina"]
[Result "1/2-1/2"]
[ECO "B00"]
[WhiteElo "2029"]
[BlackElo "1700"]
[Annotator "NA"]
[PlyCount "146"]
[EventDate "2019.05.25"]
[EventType "tourn"]
[EventCountry "GER"]
[SourceTitle "playchess.com"]
[Source "ChessBase"]
[SourceQuality "1"]
[TimeControl "180+2"]

1. e4 {[%emt 0:00:01]} b6 {[%emt 0:00:01]} 2. d4 {[%emt 0:00:05]} Bb7 {[%emt 0:00:00]} 3. Bd3 {[%emt 0:00:01]} g6 {[%emt 0:00:04]} 4. f4 {[%emt 0:00:03]} Bg7 {[%emt 0:00:01]} 5. Nf3 {[%emt 0:00:01]} Nc6 {[%emt 0:00:02]} 6. c3 {[%emt 0:00:01]} d6 {[%emt 0:00:04]} 7. Nbd2 {[%emt 0:00:19]} e6 {[%emt 0:00:01]} 8. Qe2 {[%emt 0:00:08]} Nge7 {[%emt 0:00:01]} 9. Nf1 {[%emt 0:00:09]} a6 {[%emt 0:00:01]} 10. Ne3 {[%emt 0:00:03]} Qd7 {[%emt 0:00:00]} 11. O-O {[%emt 0:00:09]} O-O {[%emt 0:00:03]} 12. e5 {[%emt 0:00:05]} Nf5 {[%emt 0:00:03]} 13. Nxf5 {[%emt 0:00:05]} exf5 {[%emt 0:00:03]} 14. d5 {[%emt 0:00:08]} Na7 15. e6 {[%emt 0:00:07]} fxe6 {[%emt 0:00:19]} 16. dxe6 {[%emt 0:00:01]} Qe7 {[%emt 0:00:04]} 17. Re1 {[%emt 0:00:04]} Rfe8 {[%emt 0:00:05]} 18. Bxa6 Bxa6 {[%emt 0:00:27]} 19. Qxa6 {[%emt 0:00:19]} Nc6 {[%emt 0:00:02]} 20. Qc4 {[%emt 0:00:05]} Nd8 {[%emt 0:00:06]} 21. Nd4 {[%emt 0:00:27]} c5 {[%emt 0:00:05]} 22. Nb5 {[%emt 0:00:06]} Ra5 {[%emt 0:00:08]} 23. b4 {[%emt 0:00:04]} d5 {[%emt 0:00:06]} 24. Qd3 {[%emt 0:00:12]} cxb4 {[%emt 0:00:11]} 25. cxb4 {[%emt 0:00:07]} Ra8 {[%emt 0:00:21]} 26. Qxd5 {[%emt 0:00:25]} Nxe6 {[%emt 0:00:44]} 27. Rb1 {[%emt 0:00:17]} Rad8 {[%emt 0:00:09]} 28. Qb3 {[%emt 0:00:05]} Kh8 {[%emt 0:00:08]} 29. Bb2 {[%emt 0:00:05]} Bxb2 {[%emt 0:00:07]} 30. Qxb2+ {[%emt 0:00:00]} Qg7 {[%emt 0:00:01]} 31. Re5 {[%emt 0:00:04]} Nxf4 {[%emt 0:00:07]} 32. Rxe8+ {[%emt 0:00:01]} Rxe8 {[%emt 0:00:02]} 33. Qf2 {[%emt 0:00:07]} Nd3 {[%emt 0:00:04]} 34. Qxb6 {[%emt 0:00:02]} h5 {[%emt 0:00:06]} 35. Nd6 {[%emt 0:00:02]} Re1+ {[%emt 0:00:03]} 36. Rxe1 {[%emt 0:00:01]} Nxe1 {[%emt 0:00:01]} 37. Qe3 {[%emt 0:00:01]} Qa1 {[%emt 0:00:04]} 38. Qh6+ {[%emt 0:00:02]} Kg8 {[%emt 0:00:01]} 39. Qxg6+ Qg7 {[%emt 0:00:02]} 40. Qxg7+ {[%emt 0:00:05]} Kxg7 {[%emt 0:00:02]} 41. Nxf5+ {[%emt 0:00:01]} Kf6 {[%emt 0:00:00]} 42. Ng3 {[%emt 0:00:01]} h4 {[%emt 0:00:02]} 43. Ne4+ {[%emt 0:00:01]} Kf5 {[%emt 0:00:01]} 44. Nd2 {[%emt 0:00:02]} Nd3 {[%emt 0:00:02]} 45. b5 {[%emt 0:00:01]} Nc5 {[%emt 0:00:01]} 46. b6 {[%emt 0:00:02]} Nb7 {[%emt 0:00:01]} 47. a4 {[%emt 0:00:02]} Ke6 {[%emt 0:00:01]} 48. Nc4 {[%emt 0:00:01]} Kd5 {[%emt 0:00:01]} 49. Ne3+ {[%emt 0:00:03]} Kc6 {[%emt 0:00:01]} 50. Nf5 {[%emt 0:00:01]} h3 {[%emt 0:00:02]} 51. g4 {[%emt 0:00:02]} Kxb6 {[%emt 0:00:01]} 52. g5 {[%emt 0:00:01]} Nd8 {[%emt 0:00:01]} 53. Kf2 {[%emt 0:00:01]} Ne6 {[%emt 0:00:02]} 54. g6 {[%emt 0:00:02]} Ka5 {[%emt 0:00:01]} 55. g7 {[%emt 0:00:01]} Nxg7 {[%emt 0:00:03]} 56. Nxg7 {[%emt 0:00:02]} Kxa4 {[%emt 0:00:01]} 57. Kg3 {[%emt 0:00:01]} Kb5 {[%emt 0:00:00]} 58. Kxh3 {[%emt 0:00:01]} Kc5 {[%emt 0:00:01]} 59. Kg4 {[%emt 0:00:01]} Kd6 {[%emt 0:00:00]} 60. Kg5 {[%emt 0:00:01]} Ke7 {[%emt 0:00:01]} 61. Kg6 {[%emt 0:00:02]} Kf8 {[%emt 0:00:01]} 62. h4 {[%emt 0:00:05]} Kg8 {[%emt 0:00:01]} 63. h5 {[%emt 0:00:01]} Kh8 {[%emt 0:00:01]} 64. h6 {[%emt 0:00:02]} Kg8 {[%emt 0:00:00]} 65. Nh5 {[%emt 0:00:02]} Kh8 {[%emt 0:00:01]} 66. Nf4 {[%emt 0:00:05]} Kg8 {[%emt 0:00:01]} 67. Kh5 {[%emt 0:00:01]} Kh7 {[%emt 0:00:00]} 68. Ng6 {[%emt 0:00:02]} Kg8 {[%emt 0:00:05]} 69. Ne5 {[%emt 0:00:08]} Kh7 {[%emt 0:00:02]} 70. Ng4 {[%emt 0:00:01]} Kg8 {[%emt 0:00:01]} 71. Kg6 {[%emt 0:00:03]} Kh8 {[%emt 0:00:00]} 72. Ne5 {[%emt 0:00:10]} Kg8 73. h7+ Kh8 1/2-1/2

[Event "GER-chW Blitz 2019"]
[Site "Magdeburg"]
[Date "2019.05.25"]
[Round "7.1"]
[White "Hofmann, Karina"]
[Black "Roesler, Hannah Clara Hed"]
[Result "1-0"]
[ECO "A02"]
[WhiteElo "1700"]
[BlackElo "1619"]
[Annotator "NA"]
[PlyCount "79"]
[EventDate "2019.05.25"]
[EventType "tourn"]
[EventCountry "GER"]
[SourceTitle "playchess.com"]
[Source "ChessBase"]
[SourceQuality "1"]
[TimeControl "180+2"]

1. f4 {[%emt 0:00:00]} e5 {[%emt 0:00:07]} 2. fxe5 {[%emt 0:00:02]} d6 {[%emt 0:00:01]} 3. exd6 {[%emt 0:00:01]} Bxd6 {[%emt 0:00:01]} 4. Nf3 {[%emt 0:00:01]} g5 {[%emt 0:00:08]} 5. g3 {[%emt 0:00:00]} Nf6 {[%emt 0:00:20]} 6. d4 {[%emt 0:00:01]} g4 {[%emt 0:00:22]} 7. Nh4 {[%emt 0:00:02]} Nc6 {[%emt 0:00:05]} 8. c3 {[%emt 0:00:01]} Ne4 {[%emt 0:00:31]} 9. Qd3 {[%emt 0:00:04]} Qe7 {[%emt 0:00:09]} 10. Bg2 {[%emt 0:00:09]} f5 {[%emt 0:00:15]} 11. O-O {[%emt 0:00:14]} Rf8 {[%emt 0:00:07]} 12. Bh6 {[%emt 0:00:08]} Rf7 {[%emt 0:00:08]} 13. Nd2 {[%emt 0:00:04]} Nxd2 {[%emt 0:00:04]} 14. Qxd2 {[%emt 0:00:03]} Bd7 {[%emt 0:00:07]} 15. Bg5 {[%emt 0:00:07]} Qe6 {[%emt 0:00:08]} 16. d5 {[%emt 0:00:04]} Qe5 {[%emt 0:00:10]} 17. dxc6 {[%emt 0:00:08]} bxc6 {[%emt 0:00:02]} 18. Rae1 {[%emt 0:00:09]} Be7 {[%emt 0:00:02]} 19. Bxe7 {[%emt 0:00:03]} Rxe7 {[%emt 0:00:04]} 20. Nxf5 {[%emt 0:00:11]} Re6 {[%emt 0:00:18]} 21. Nd4 {[%emt 0:00:15]} Rd6 {[%emt 0:00:09]} 22. Qf4 {[%emt 0:00:15]} Qxf4 {[%emt 0:00:03]} 23. Rxf4 {[%emt 0:00:02]} O-O-O {[%emt 0:00:04]} 24. Rf7 {[%emt 0:00:08]} h6 {[%emt 0:00:04]} 25. e4 {[%emt 0:00:04]} Rg6 {[%emt 0:00:04]} 26. Ref1 {[%emt 0:00:05]} c5 {[%emt 0:00:04]} 27. Nf5 {[%emt 0:00:09]} Bb5 {[%emt 0:00:03]} 28. Ne7+ {[%emt 0:00:06]} Kb7 {[%emt 0:00:04]} 29. Nxg6 {[%emt 0:00:03]} Bxf1 {[%emt 0:00:02]} 30. Bxf1 {[%emt 0:00:06]} Rd2 {[%emt 0:00:01]} 31. e5 {[%emt 0:00:05]} Rxb2 {[%emt 0:00:02]} 32. e6 {[%emt 0:00:01]} Kc8 {[%emt 0:00:06]} 33. Rf8+ {[%emt 0:00:08]} Kb7 {[%emt 0:00:02]} 34. e7 {[%emt 0:00:02]} Rxa2 {[%emt 0:00:03]} 35. e8=Q {[%emt 0:00:04]} a5 {[%emt 0:00:04]} 36. Qa8+ {[%emt 0:00:14]} Kb6 {[%emt 0:00:01]} 37. Rf6+ {[%emt 0:00:05]} c6 {[%emt 0:00:05]} 38. Qxc6+ {[%emt 0:00:02]} Ka7 {[%emt 0:00:01]} 39. Rf7+ {[%emt 0:00:02]} Kb8 {[%emt 0:00:02]} 40. Qb7# {[%emt 0:00:02]} 1-0

[Event "GER-chW Blitz 2019"]
[Site "Magdeburg"]
[Date "2019.05.25"]
[Round "7.2"]
[White "Birkholz, Olga"]
[Black "Siegl, Melina"]
[Result "1-0"]
[ECO "A80"]
[WhiteElo "2031"]
[BlackElo "2029"]
[Annotator "NA"]
[PlyCount "69"]
[EventDate "2019.05.25"]
[EventType "tourn"]
[EventCountry "GER"]
[SourceTitle "playchess.com"]
[Source "ChessBase"]
[SourceQuality "1"]
[TimeControl "180+2"]

1. d4 {[%emt 0:00:00]} f5 {[%emt 0:00:01]} 2. Nc3 {[%emt 0:00:02]} d6 {[%emt 0:00:02]} 3. e4 {[%emt 0:00:01]} fxe4 {[%emt 0:00:07]} 4. Nxe4 {[%emt 0:00:02]} g6 {[%emt 0:00:02]} 5. Bd3 {[%emt 0:00:04]} Bg7 {[%emt 0:00:01]} 6. c3 {[%emt 0:00:00]} Nf6 {[%emt 0:00:08]} 7. Ng3 {[%emt 0:00:05]} c6 {[%emt 0:00:06]} 8. Nf3 {[%emt 0:00:02]} O-O {[%emt 0:00:14]} 9. h3 {[%emt 0:00:07]} Qe8 {[%emt 0:00:07]} 10. O-O {[%emt 0:00:08]} e5 {[%emt 0:00:13]} 11. Re1 {[%emt 0:00:08]} Nbd7 {[%emt 0:00:02]} 12. Qb3+ {[%emt 0:00:23]} Kh8 {[%emt 0:00:03]} 13. Ng5 {[%emt 0:00:03]} d5 {[%emt 0:01:00]} 14. dxe5 {[%emt 0:00:03]} h6 {[%emt 0:00:14]} 15. Nf3 {[%emt 0:00:05]} Ng8 {[%emt 0:00:14]} 16. Qc2 {[%emt 0:00:03]} Ne7 {[%emt 0:00:03]} 17. Bd2 {[%emt 0:00:08]} Nc5 {[%emt 0:00:01]} 18. Bf1 {[%emt 0:00:12]} Nf5 {[%emt 0:00:03]} 19. b4 {[%emt 0:00:06]} Nxg3 {[%emt 0:00:11]} 20. fxg3 {[%emt 0:00:02]} Ne4 {[%emt 0:00:01]} 21. Rxe4 {[%emt 0:00:44]} dxe4 {[%emt 0:00:05]} 22. Qxe4 {[%emt 0:00:01]} Bf5 {[%emt 0:00:01]} 23. Qe3 {[%emt 0:00:08]} Rd8 {[%emt 0:00:12]} 24. Re1 {[%emt 0:00:09]} Bxh3 {[%emt 0:00:19]} 25. Nd4 {[%emt 0:00:36]} Bg4 {[%emt 0:00:06]} 26. Bd3 {[%emt 0:00:05]} Rd5 {[%emt 0:00:07]} 27. Qe4 {[%emt 0:00:09]} Rxe5 {[%emt 0:00:02]} 28. Qxg4 {[%emt 0:00:14]} Rxe1+ {[%emt 0:00:01]} 29. Kh2 {[%emt 0:00:01]} Re5 {[%emt 0:00:05]} 30. Bxg6 {[%emt 0:00:02]} Qe7 {[%emt 0:00:01]} 31. Bf4 {[%emt 0:00:02]} Re1 {[%emt 0:00:03]} 32. Bd3 {[%emt 0:00:06]} Ra1 {[%emt 0:00:02]} 33. Qg6 {[%emt 0:00:02]} Bxd4 {[%emt 0:00:03]} 34. cxd4 {[%emt 0:00:01]} Rg8 {[%emt 0:00:02]} 35. Qxh6+ {Qd8} 1-0

[Event "GER-chW Blitz 2019"]
[Site "Magdeburg"]
[Date "2019.05.25"]
[Round "7.3"]
[White "Rath, Alina"]
[Black "Muetsch, Annmarie"]
[Result "0-1"]
[ECO "A16"]
[WhiteElo "2042"]
[BlackElo "2266"]
[Annotator "NA"]
[PlyCount "102"]
[EventDate "2019.05.25"]
[EventType "tourn"]
[EventCountry "GER"]
[SourceTitle "playchess.com"]
[Source "ChessBase"]
[SourceQuality "1"]
[TimeControl "180+2"]

1. c4 {[%emt 0:00:00]} Nf6 {[%emt 0:00:00]} 2. Nc3 {[%emt 0:00:00]} g6 {[%emt 0:00:00]} 3. g3 Bg7 {[%emt 0:00:01]} 4. Bg2 {[%emt 0:00:01]} O-O {[%emt 0:00:01]} 5. e4 {[%emt 0:00:01]} d6 {[%emt 0:00:02]} 6. Nge2 {[%emt 0:00:00]} c5 {[%emt 0:00:04]} 7. O-O {[%emt 0:00:02]} Nc6 {[%emt 0:00:02]} 8. d3 {[%emt 0:00:01]} Bg4 {[%emt 0:00:03]} 9. h3 {[%emt 0:00:01]} Bxe2 {[%emt 0:00:02]} 10. Nxe2 {[%emt 0:00:01]} a6 {[%emt 0:00:03]} 11. f4 {[%emt 0:00:03]} Rb8 {[%emt 0:00:04]} 12. Be3 {[%emt 0:00:07]} Ne8 {[%emt 0:00:08]} 13. Rb1 {[%emt 0:00:27]} b5 {[%emt 0:00:09]} 14. b3 {[%emt 0:00:03]} Nc7 {[%emt 0:00:06]} 15. Qd2 {[%emt 0:00:16]} Qd7 {[%emt 0:00:21]} 16. Kh2 {[%emt 0:00:05]} Ne6 {[%emt 0:00:09]} 17. f5 {[%emt 0:00:11]} Ned4 {[%emt 0:00:08]} 18. g4 {[%emt 0:00:08]} Be5+ {[%emt 0:00:11]} 19. Kh1 {[%emt 0:00:04]} Nxe2 {[%emt 0:00:18]} 20. Qxe2 {[%emt 0:00:02]} Nd4 {[%emt 0:00:02]} 21. Qf2 {[%emt 0:00:05]} e6 {[%emt 0:00:08]} 22. f6 {[%emt 0:00:09]} Rfd8 {[%emt 0:00:14]} 23. g5 {[%emt 0:00:09]} a5 {[%emt 0:00:08]} 24. Bxd4 {[%emt 0:00:22]} Bxd4 {[%emt 0:00:02]} 25. Qh4 {[%emt 0:00:01]} Qe8 {[%emt 0:00:09]} 26. Bf3 {[%emt 0:00:16]} Be5 {[%emt 0:00:09]} 27. Rg1 {[%emt 0:00:19]} Qf8 {[%emt 0:00:04]} 28. Rg4 {[%emt 0:00:03]} a4 {[%emt 0:00:10]} 29. Qe1 {[%emt 0:00:05]} axb3 {[%emt 0:00:06]} 30. axb3 {[%emt 0:00:02]} bxc4 {[%emt 0:00:05]} 31. dxc4 {[%emt 0:00:02]} h6 {[%emt 0:00:18]} 32. h4 {[%emt 0:00:23]} h5 {[%emt 0:00:03]} 33. Rg2 {[%emt 0:00:03]} Ra8 {[%emt 0:00:11]} 34. Qe2 {[%emt 0:00:07]} Ra3 {[%emt 0:00:12]} 35. Qd1 {[%emt 0:00:05]} Rda8 {[%emt 0:00:02]} 36. Be2 {[%emt 0:00:11]} Ra1 {[%emt 0:00:03]} 37. Bd3 {[%emt 0:00:06]} Qb8 {[%emt 0:00:08]} 38. Rg1 {[%emt 0:00:04]} Rxb1 {[%emt 0:00:04]} 39. Qxb1 {[%emt 0:00:02]} Qb4 {[%emt 0:00:02]} 40. Qc2 {[%emt 0:00:02]} Ra3 {[%emt 0:00:02]} 41. Rb1 {[%emt 0:00:02]} Kf8 {[%emt 0:00:03]} 42. Kg2 {[%emt 0:00:01]} Ke8 {[%emt 0:00:02]} 43. Kf3 {[%emt 0:00:01]} Kd7 {[%emt 0:00:02]} 44. Ke3 {[%emt 0:00:07]} Bd4+ {[%emt 0:00:02]} 45. Kf3 {[%emt 0:00:00]} Kc7 {[%emt 0:00:02]} 46. Ke2 {[%emt 0:00:03]} Qa5 47. Kf3 {[%emt 0:00:01]} Ra2 {[%emt 0:00:02]} 48. Qd1 {[%emt 0:00:01]} Rf2+ {[%emt 0:00:02]} 49. Kg3 {[%emt 0:00:01]} Qa2 {[%emt 0:00:02]} 50. Qh1 {[%emt 0:00:06]} Be5+ {[%emt 0:00:02]} 51. Kh3 {[%emt 0:00:01]} Rh2+ {[%emt 0:00:01]} 0-1